bitfinex/quotes_SOLUSD_20250901
["timestamp","ask_amount","ask_price","bid_price","bid_amount"]
[1756728493018,3.62229762,200.05,200.04,0.67]
[1756728493312,0.14216157,200.07,200.04,0.67]
[1756728493521,0.14216157,200.07,200.02,0.12]
[1756728493522,0.14216157,200.07,200.05,0.67]
[1756728493817,3.62229762,200.09,200.06,0.67]
[1756728494117,3.62229762,200.09,200.07,0.67]
[1756728494348,4.99725151,200.11,200.07,0.67]
[1756728495001,3.62229762,200.09,200.07,0.67]
[1756728495203,0.14216157,200.11,200.08,0.67]
[1756728495437,0.14216157,200.11,200.09,0.67]
[1756728495995,3.65229762,200.13,200.09,0.67]
[1756728496521,0.03,200.13,200.1,0.67]
[1756728496831,3.65229762,200.13,200.1,0.67]
[1756728497224,3.62229762,200.11,200.07,0.67]
[1756728497429,3.62229762,200.11,200.08,0.67]
[1756728497639,3.62229762,200.11,200.09,0.67]
[1756728498205,0.03,200.13,200.09,0.67]
[1756728498405,3.62229762,200.12,200.1,0.67]
[1756728498799,3.65229762,200.13,200.11,0.67]
[1756728499743,3.65229762,200.13,200.06,4.997884]
[1756728499744,3.62229762,200.12,200.06,5.667884]
[1756728499909,3.62229762,200.09,200.06,0.67]
[1756728500106,3.62229762,200.09,200.07,0.67]
[1756728500308,3.62229762,200.12,200.08,0.67]
[1756728500519,3.65229762,200.13,200.08,0.67]
[1756728501233,3.65229762,200.13,200.09,0.67]
[1756728501434,3.62229762,200.12,200.09,0.67]
[1756728502015,3.62229762,200.12,200.09,5.66760093]
[1756728502419,3.62229762,200.12,200.1,0.71]
[1756728503737,3.62229762,200.12,200.1,5.70734426]
[1756728503933,3.62229762,200.11,200.07,5.70825061]
[1756728504105,3.62229762,200.11,200.08,0.71]
[1756728504506,3.62229762,200.09,200.06,5.70847056]
[1756728504920,3.62229762,200.1,200.07,0.71]
[1756728505335,0.50216157,200.13,200.07,0.71]
[1756728505526,0.50216157,200.13,200.06,4.99847056]
[1756728505527,3.62229762,200.11,200.08,0.71]
[1756728505724,0.17216157,200.13,200.06,5.70847056]
[1756728505725,3.62229762,200.1,200.06,5.70847056]
[1756728506029,3.62229762,200.09,200.06,5.70847056]
[1756728507228,3.62229762,200.07,200.02,15.85291]
[1756728507427,3.62229762,200.04,200.02,0.83]
[1756728507609,3.62229762,200.05,200.03,0.71]
[1756728507929,3.62229762,200.06,200.03,0.71]
[1756728508443,0.14216157,200.09,200.07,0.12]
[1756728508734,3.62229762,200.09,200.08,0.71]
[1756728508940,3.62229762,200.09,200.07,0.12]
[1756728509104,3.62229762,200.09,200.08,3.72246574]
[1756728509310,0.14216157,200.11,200.08,3.72246574]
[1756728509510,3.62229762,200.09,200.07,5.1182287]
[1756728509837,0.47216157,200.11,200.08,3.72424985]
[1756728510040,0.33,200.1,200.09,3.72424985]
[1756728510842,3.76445919,200.1,200.09,3.72424985]
[1756728511015,3.62229762,200.1,200.09,3.72424985]
[1756728512939,4.09445919,200.1,200.09,3.72424985]
[1756728513237,3.76445919,200.1,200.07,0.12]
[1756728513536,3.62229762,200.08,200.07,0.12]
[1756728514035,0.14216157,200.09,200.07,0.83]
[1756728514238,3.62229762,200.08,200.07,0.83]
[1756728514443,3.62229762,200.08,200.07,0.12]
[1756728517046,0.14216157,200.09,200.07,0.12]
[1756728517250,3.62229762,200.08,200.07,0.12]
[1756728517455,0.14216157,200.09,200.07,0.12]
[1756728517750,3.62229762,200.08,200.07,0.12]
[1756728518828,3.76445919,200.08,200.07,0.12]
[1756728520220,0.14216157,200.08,200.07,0.83]
[1756728520421,0.14216157,200.09,200.07,0.83]
[1756728520635,0.14216157,200.09,200.08,0.71]
[1756728520636,3.76445919,200.09,200.08,0.71]
[1756728521226,3.76445919,200.09,200.07,0.12]
[1756728521425,3.62229762,200.08,200.07,0.83]
[1756728522744,3.76445919,200.09,200.07,0.83]
[1756728522918,3.76445919,200.09,200.08,0.71]
[1756728523347,3.76445919,200.09,200.08,3.7265453]
[1756728524948,0.14216157,200.09,200.08,4.4365453]
[1756728525153,13.62559401,200.13,200.08,4.4365453]
[1756728525336,3.62229762,200.11,200.09,4.4365453]
[1756728525528,3.76445919,200.11,200.1,4.4365453]
[1756728526155,3.76445919,200.11,200.1,4.43642051]
[1756728526350,3.76445919,200.11,200.1,3.72642051]
[1756728527046,9.0917107,200.11,200.1,3.72642051]
[1756728527347,8.7617107,200.11,200.1,3.72642051]
[1756728528037,3.76445919,200.11,200.1,3.72642051]
[1756728528435,0.14216157,200.11,200.1,4.43642051]
[1756728528640,0.03,200.13,200.1,4.43642051]
[1756728528841,3.76445919,200.12,200.11,4.4359057]
[1756728529037,3.76445919,200.12,200.11,3.7259057]
[1756728529349,3.76445919,200.12,200.11,4.4359057]
[1756728529546,0.14216157,200.12,200.11,4.4359057]
[1756728529736,3.76445919,200.12,200.11,3.7259057]
[1756728530055,0.14216157,200.12,200.11,4.4359057]
[1756728530451,3.76445919,200.12,200.11,3.7259057]
[1756728530663,8.76146098,200.12,200.11,3.7259057]
[1756728530853,5.13916336,200.12,200.11,3.7259057]
[1756728531148,8.76146098,200.12,200.11,3.7259057]
[1756728531529,3.76445919,200.12,200.11,3.7259057]
[1756728531730,0.14216157,200.12,200.11,4.4459057]
[1756728532148,3.76445919,200.12,200.11,4.4459057]
[1756728532959,3.76445919,200.12,200.11,3.7259057]
[1756728533162,0.14216157,200.12,200.11,3.7259057]
[1756728533331,3.76445919,200.12,200.11,4.4459057]
[1756728533748,3.76445919,200.12,200.11,3.7259057]
[1756728533950,0.14216157,200.12,200.11,3.7259057]
[1756728534341,3.76445919,200.12,200.11,3.7259057]
[1756728535642,3.76445919,200.12,200.09,0.72]
[1756728535842,3.62229762,200.1,200.09,0.72]
[1756728536043,0.14216157,200.12,200.09,4.44532884]
[1756728536243,0.14216157,200.12,200.1,3.72532884]
[1756728536547,0.14216157,200.12,200.11,3.72532884]
[1756728537248,0.14216157,200.12,200.11,4.44532884]
[1756728537452,3.76445919,200.12,200.11,4.44532884]
[1756728538533,0.14216157,200.12,200.11,4.44532884]
[1756728538856,3.76445919,200.12,200.11,3.72532884]
[1756728539061,0.14216157,200.12,200.11,3.72532884]
[1756728539443,3.76445919,200.12,200.11,3.72532884]
[1756728539841,17.3600532,200.12,200.11,3.72532884]
[1756728540159,22.35705499,200.12,200.11,3.72532884]
[1756728540666,17.3600532,200.12,200.11,3.72532884]
[1756728541038,0.14216157,200.11,200.07,0.84]
[1756728541258,3.62229762,200.09,200.08,4.448219]
[1756728541461,3.62229762,200.1,200.08,3.728219]
[1756728541765,3.62229762,200.11,200.09,4.448219]
[1756728542067,3.62229762,200.11,200.1,4.448219]
[1756728542942,5.13916936,200.12,200.1,4.448219]
[1756728543143,5.13916936,200.12,200.11,3.728219]
[1756728543375,8.76146698,200.12,200.11,3.728219]
[1756728543679,5.13916936,200.12,200.11,4.448219]
[1756728543856,8.76146698,200.12,200.11,4.448219]
[1756728544188,3.76445919,200.12,200.11,4.448219]
[1756728545341,0.14216157,200.12,200.11,4.44902764]
[1756728545552,3.76445919,200.12,200.11,4.44902764]
[1756728546356,0.03,200.13,200.11,9.44624945]
[1756728546559,3.65229762,200.13,200.12,4.44902764]
[1756728547475,0.03,200.13,200.12,4.44902764]
[1756728548079,3.65229762,200.13,200.12,4.44902764]
[1756728548382,0.03,200.13,200.12,4.44902764]
[1756728548558,3.65229762,200.13,200.12,4.44902764]
[1756728549770,0.03,200.13,200.12,4.44902764]
[1756728550368,3.65229762,200.13,200.12,4.44902764]
[1756728550988,0.03,200.13,200.12,9.44602943]
[1756728551876,3.65229762,200.13,200.12,4.44902764]
[1756728554072,3.65229762,200.13,200.12,3.72902764]
[1756728555573,22.71680531,200.13,200.12,3.72902764]
[1756728555775,0.14216157,200.12,200.07,0.84]
[1756728555972,3.62229762,200.09,200.08,4.44515386]
[1756728556593,0.14216157,200.12,200.08,4.44515386]
[1756728556769,3.62229762,200.09,200.07,5.11824553]
[1756728557095,13.73775558,200.12,200.08,3.72471339]
[1756728557304,0.14216157,200.1,200.09,3.72471339]
[1756728557593,0.03,200.13,200.09,9.4424644]
[1756728557769,0.03,200.13,200.1,4.44471339]
[1756728557975,0.03,200.13,200.11,3.72471339]
[1756728558283,0.17216157,200.13,200.12,3.72471339]
[1756728558487,5.49891368,200.13,200.12,3.72471339]
[1756728559396,8.7912113,200.13,200.12,3.72471339]
[1756728559589,8.7912113,200.13,200.07,0.84]
[1756728559890,3.62229762,200.09,200.07,0.84]
[1756728560268,5.16891368,200.13,200.08,0.72]
[1756728560486,3.62229762,200.09,200.07,0.12]
[1756728560682,3.62229762,200.08,200.07,0.84]
[1756728561477,3.62229762,200.08,200.07,0.12]
[1756728562393,8.76245998,200.08,200.07,0.12]
[1756728563094,22.68805399,200.08,200.07,0.12]
[1756728563481,24.69170999,200.08,200.07,0.12]
[1756728563870,24.36170999,200.08,200.07,0.12]
[1756728564500,3.76445919,200.08,200.07,0.12]
[1756728565278,0.14216157,200.08,200.07,0.12]
[1756728565582,3.76445919,200.08,200.07,0.12]
[1756728566082,8.76245998,200.08,200.07,0.12]
[1756728566275,22.35805399,200.08,200.07,0.12]
[1756728566473,2.033355,200.11,200.07,5.81819876]
[1756728566717,0.03,200.11,200.08,4.32229762]
[1756728566904,0.03,200.11,200.09,4.32229762]
[1756728567395,0.03,200.11,200.1,0.7]
[1756728567598,0.03,200.11,200.1,5.69750124]
[1756728567807,0.03,200.11,200.1,4.42610871]
[1756728567984,3.65229762,200.11,200.1,4.42610871]
[1756728569486,3.65229762,200.11,200.1,3.72610871]
[1756728569899,3.79445919,200.11,200.1,3.72610871]
[1756728570113,8.7917107,200.11,200.1,3.72610871]
[1756728572798,3.79445919,200.11,200.1,3.72610871]
[1756728572996,8.7917107,200.11,200.1,3.72610871]
[1756728574590,5.16941308,200.11,200.1,3.72610871]
[1756728574906,8.7917107,200.11,200.1,3.72610871]
[1756728576915,8.7917107,200.11,200.07,0.82]
[1756728577098,3.62229762,200.09,200.08,4.42723151]
[1756728577712,3.62229762,200.09,200.08,3.72723151]
[1756728578312,5.13977666,200.1,200.08,4.42723151]
[1756728578617,3.62229762,200.09,200.08,0.7]
[1756728578917,3.62229762,200.09,200.08,4.42670416]
[1756728579119,8.7622102,200.09,200.08,3.72670416]
[1756728579422,18.73550659,200.09,200.08,3.72670416]
[1756728579613,22.35780421,200.09,200.08,3.72670416]
[1756728579913,0.14216157,200.08,200.07,0.12]
[1756728580121,3.76445919,200.08,200.07,0.82]
[1756728581116,8.76245998,200.08,200.07,0.82]
[1756728582415,8.76245998,200.08,200.07,0.12]
[1756728582736,22.35805399,200.08,200.07,0.12]
[1756728582895,22.68805399,200.08,200.07,0.12]
[1756728583090,22.35805399,200.08,200.07,0.12]
[1756728588504,18.73575637,200.08,200.07,0.82]
[1756728588703,0.03,200.11,200.07,0.82]
[1756728588923,3.62229762,200.1,200.07,0.82]
[1756728589130,0.03,200.11,200.08,3.71749258]
[1756728589327,0.03,200.11,200.09,4.41749258]
[1756728589624,0.03,200.11,200.1,3.71749258]
[1756728589828,0.03,200.11,200.1,4.41749258]
[1756728590206,0.03,200.11,200.1,0.7]
[1756728592122,0.03,200.11,200.1,4.41651285]
[1756728595418,0.03,200.11,200.1,9.41401409]
[1756728596226,0.03,200.11,200.1,4.41651285]
[1756728596429,0.03,200.11,200.1,9.41401409]
[1756728596610,0.03,200.11,200.1,13.03631171]
[1756728598127,0.03,200.11,200.1,9.31979886]
[1756728598332,0.03,200.11,200.1,13.03566534]
[1756728598711,0.03,200.11,200.1,15.03671281]
[1756728599727,0.03,200.11,200.1,54.49671281]
[1756728599932,0.03,200.11,200.1,52.49445981]
[1756728600229,0.03,200.11,200.1,54.49671181]
[1756728600611,0.03,200.11,200.1,13.03445981]
[1756728600817,0.03,200.11,200.1,48.85216219]
[1756728601129,0.03,200.11,200.1,52.47445981]
[1756728602516,0.03,200.11,200.1,165.47445981]
[1756728603237,0.03,200.11,200.1,126.03445981]
[1756728603436,0.03,200.11,200.1,165.45445981]
[1756728603646,0.03,200.11,200.1,52.45445981]
[1756728603936,0.03,200.11,200.1,52.43445981]
[1756728604138,0.03,200.11,200.1,30.41466095]
[1756728604304,0.03,200.11,200.1,34.03695857]
[1756728604505,0.03,200.11,200.1,43.11466095]
[1756728604706,3.65229762,200.11,200.1,3.71466095]
[1756728604916,0.03,200.11,200.1,3.71466095]
[1756728605126,8.64954913,200.11,200.1,3.71466095]
[1756728605510,8.97954913,200.11,200.1,3.71466095]
[1756728605708,3.65229762,200.11,200.1,3.71466095]
[1756728605936,0.03,200.11,200.1,3.71466095]
[1756728606106,8.64954913,200.11,200.1,3.71466095]
[1756728606313,9.1217107,200.11,200.1,3.71466095]
[1756728606708,22.71730471,200.11,200.1,3.71466095]
[1756728606908,26.33960233,200.11,200.1,3.71466095]
[1756728607835,13.73775558,200.1,200.07,0.12]
[1756728608029,3.76445919,200.08,200.07,0.12]
[1756728608206,3.76445919,200.08,200.07,3.83732095]
[1756728608406,4.09445919,200.08,200.07,3.83732095]
[1756728608634,22.68805399,200.08,200.07,3.83732095]
[1756728609435,22.35805399,200.08,200.07,3.83732095]
[1756728609639,8.76245998,200.08,200.07,3.83732095]
[1756728610217,9.09245998,200.08,200.07,3.83732095]
[1756728610413,0.14216157,200.07,200.04,0.12]
[1756728610629,18.59434432,200.05,200.04,0.12]
[1756728610821,0.14216157,200.05,200.04,0.12]
[1756728611023,3.62229762,200.05,200.04,0.8]
[1756728611425,0.14216157,200.08,200.04,0.8]
[1756728611620,3.62229762,200.06,200.04,0.8]
[1756728611831,3.62229762,200.05,200.04,0.8]
[1756728612423,3.62229762,200.06,200.04,0.8]
[1756728613544,8.6208206,200.06,200.04,0.8]
[1756728614441,3.62229762,200.05,200.04,0.8]
[1756728614632,3.62229762,200.05,200.04,0.12]
[1756728614633,8.7632095,200.05,200.04,0.12]
[1756728616517,8.7632095,200.05,200.04,0.8]
[1756728616718,8.7632095,200.05,200.04,0.12]
[1756728617864,22.68880351,200.05,200.04,0.12]
[1756728618452,22.35880351,200.05,200.04,0.12]
[1756728618958,18.73650589,200.05,200.04,0.12]
[1756728619131,22.35880351,200.05,200.04,0.12]
[1756728622454,22.35880351,200.05,200.04,3.83627334]
[1756728623064,5.14091188,200.05,200.04,4.50627334]
[1756728623234,8.7632095,200.05,200.04,4.50627334]
[1756728623744,0.14216157,200.05,200.04,4.50627334]
[1756728623923,3.76445919,200.05,200.04,4.50627334]
[1756728625958,8.7632095,200.05,200.04,3.83627334]
[1756728626133,8.7632095,200.05,200.04,4.50627334]
[1756728626535,3.76445919,200.05,200.04,4.50627334]
[1756728627361,8.7632095,200.05,200.04,4.50627334]
[1756728628836,8.7632095,200.05,200.04,4.50394461]
[1756728629036,3.76445919,200.05,200.04,4.50394461]
[1756728635956,3.76445919,200.05,200.04,4.50142072]
[1756728636856,8.7632095,200.05,200.04,3.83142072]
[1756728637367,8.7632095,200.05,200.04,4.50142072]
[1756728638761,3.76445919,200.05,200.04,3.83142072]
[1756728638942,3.76445919,200.05,200.04,4.50142072]
[1756728639359,3.76445919,200.05,200.04,4.50236517]
[1756728639969,8.7632095,200.05,200.04,4.50236517]
[1756728643159,8.7632095,200.05,200.04,3.83236517]
[1756728644637,5.14091188,200.05,200.04,3.83236517]
[1756728645060,8.7632095,200.05,200.04,3.83236517]
[1756728645250,0.14216157,200.05,200.04,4.50236517]
[1756728645450,3.76445919,200.05,200.04,4.50236517]
[1756728646449,3.76445919,200.05,200.04,4.50507326]
[1756728646867,3.76445919,200.05,200.04,3.83507326]
[1756728647658,3.76445919,200.05,200.04,4.50507326]
[1756728647960,8.7632095,200.05,200.04,3.83507326]
[1756728648341,3.76445919,200.05,200.04,3.83507326]
[1756728648563,3.76445919,200.05,200.04,4.50507326]
[1756728648971,0.14216157,200.05,200.04,4.50507326]
[1756728649149,3.76445919,200.05,200.04,4.50507326]
[1756728649845,8.7632095,200.05,200.04,0.79]
[1756728650045,3.76445919,200.05,200.04,4.51171551]
[1756728652873,3.76445919,200.05,200.04,3.84171551]
[1756728653661,3.76445919,200.05,200.04,4.52171551]
[1756728656873,8.7632095,200.05,200.04,3.84171551]
[1756728658070,7.44772785,200.05,200.04,3.84171551]
[1756728660665,7.44772785,200.05,200.04,3.84614919]
[1756728661766,7.44772785,200.05,200.04,0.12]
[1756728662384,2.44897754,200.05,200.04,0.12]
[1756728662979,2.44897754,200.05,200.04,4.52625044]
[1756728663179,2.44897754,200.05,200.04,4.52565977]
[1756728664701,7.44772785,200.05,200.04,4.52565977]
[1756728669685,2.44897754,200.05,200.04,4.52565977]
[1756728670190,2.44897754,200.05,200.04,0.8]
[1756728670370,2.44897754,200.05,200.04,4.52990854]
[1756728671181,0.14216157,200.05,200.04,4.52990854]
[1756728671378,2.44897754,200.05,200.04,4.52990854]
[1756728671812,0.14216157,200.05,200.04,4.52990854]
[1756728671982,0.03,200.07,200.04,9.52890036]
[1756728672167,0.03,200.07,200.05,4.40990854]
[1756728672484,0.03,200.07,200.06,3.72990854]
[1756728672702,0.03,200.07,200.06,4.40990854]
[1756728673670,0.03,200.07,200.06,9.40840898]
[1756728676698,0.03,200.07,200.06,11.88738698]
[1756728677679,0.03,200.07,200.06,6.88888654]
[1756728678181,0.03,200.07,200.06,11.88738698]
[1756728679402,0.03,200.07,200.06,6.88888654]
[1756728679593,0.03,200.07,200.06,4.40990854]
[1756728680808,0.03,200.07,200.06,0.68]
[1756728680986,0.03,200.07,200.06,4.39963653]
[1756728683004,0.03,200.07,200.06,9.39813697]
[1756728683214,0.03,200.07,200.06,11.70495294]
[1756728683506,0.03,200.1,200.06,13.70800794]
[1756728683710,0.03,200.1,200.07,4.43963653]
[1756728683888,2.33681597,200.1,200.08,3.71963653]
[1756728684089,2.33681597,200.1,200.09,3.71963653]
[1756728684410,2.33681597,200.1,200.09,3.71640122]
[1756728684910,2.33681597,200.1,200.09,4.43640122]
[1756728685098,0.03,200.1,200.09,4.43640122]
[1756728691515,0.03,200.1,200.09,4.4345974]
[1756728692821,2.33681597,200.1,200.09,4.4345974]
[1756728694024,2.33681597,200.1,200.09,3.7145974]
[1756728694203,30.62933667,200.1,200.09,3.7145974]
[1756728694601,69.58933667,200.1,200.09,3.7145974]
[1756728695197,73.30393367,200.1,200.09,3.7145974]
[1756728695720,13.73775558,200.09,200.06,0.12]
[1756728695896,2.44897754,200.07,200.06,0.12]
[1756728696095,16.04457155,200.07,200.06,3.83739241]
[1756728696298,18.37822755,200.07,200.06,3.83739241]
[1756728696897,18.04822755,200.07,200.06,3.83739241]
[1756728697305,16.04457155,200.07,200.06,3.83739241]
[1756728697811,21.04282216,200.07,200.06,3.83739241]
[1756728700130,18.73600619,200.07,200.06,3.83739241]
[1756728700334,60.00282216,200.07,200.06,3.83739241]
[1756728700528,21.04282216,200.07,200.06,3.83739241]
[1756728701544,21.04282216,200.07,200.06,4.55739241]
[1756728701545,2.44897754,200.07,200.06,4.55739241]
[1756728701705,2.30681597,200.07,200.06,4.55739241]
[1756728701901,2.30681597,200.07,200.06,4.55601617]
[1756728704541,0.14216157,200.08,200.06,4.55601617]
[1756728704726,2.30681597,200.09,200.07,4.43601617]
[1756728704922,5.02759323,200.1,200.08,3.71601617]
[1756728705128,2.30681597,200.09,200.06,0.12]
[1756728705328,2.44897754,200.09,200.07,4.43547072]
[1756728705641,2.44897754,200.09,200.08,3.71547072]
[1756728707337,7.44672855,200.09,200.08,3.71547072]
[1756728709438,7.77672855,200.09,200.08,3.71547072]
[1756728709617,7.44672855,200.09,200.08,3.71547072]
[1756728709922,5.13991258,200.09,200.08,3.71547072]
[1756728710121,7.44672855,200.09,200.08,3.71547072]
[1756728710535,21.37232256,200.09,200.08,3.71547072]
[1756728710955,25.08779356,200.09,200.08,3.71547072]
[1756728711666,156.35097759,200.09,200.08,3.71547072]
[1756728711956,197.94779356,200.09,200.08,3.71547072]
[1756728712647,0.14216157,200.07,200.06,0.12]
[1756728712824,0.14216157,200.07,200.06,3.8387449]
[1756728713148,2.44897754,200.07,200.06,3.8387449]
[1756728713946,5.14041218,200.07,200.06,3.8387449]
[1756728714148,7.44722815,200.07,200.06,3.8387449]
[1756728715342,7.44722815,200.07,200.06,4.5087449]
[1756728716062,5.14041218,200.07,200.06,4.5087449]
[1756728716355,7.44722815,200.07,200.06,4.5087449]
[1756728718748,5.14041218,200.07,200.06,4.5087449]
[1756728718954,7.44722815,200.07,200.06,4.5087449]
[1756728719548,7.44722815,200.07,200.06,0.79]
[1756728719733,7.44722815,200.07,200.06,4.50695685]
[1756728720345,7.77722815,200.07,200.06,3.83695685]
[1756728720673,60.00282216,200.07,200.06,3.83695685]
[1756728720960,63.83977916,200.07,200.06,3.83695685]
[1756728722042,63.83977916,200.07,200.06,3.83746926]
[1756728723158,63.83977916,200.07,200.06,3.83868576]
[1756728723546,24.87977916,200.07,200.06,4.50868576]
[1756728723747,46.40722815,200.07,200.06,4.50868576]
[1756728723947,7.44722815,200.07,200.06,4.50868576]
[1756728724865,7.44722815,200.07,200.06,3.83868576]
[1756728725247,60.00282216,200.07,200.06,4.50868576]
[1756728725661,60.00282216,200.07,200.06,3.83868576]
[1756728725872,60.33282216,200.07,200.06,3.83868576]
[1756728726037,60.33282216,200.07,200.06,0.12]
[1756728726443,60.33282216,200.07,200.06,1e-08]
[1756728726746,0.14216157,200.03,200.01,0.12]
[1756728727053,26.0,200.0,199.99,0.12]
[1756728727365,0.14216157,199.98,199.93,0.67]
[1756728727664,41.73897754,199.98,199.93,0.67]
[1756728727845,41.40897754,199.98,199.93,0.67]
[1756728728047,47.71158926,199.98,199.93,0.67]
[1756728728841,8.75158926,199.98,199.97,0.79]
[1756728729146,61.30718327,199.98,199.97,0.79]
[1756728729540,61.30718327,199.98,199.97,0.12]
[1756728730568,22.34718327,199.98,199.97,0.79]
[1756728730870,61.30718327,199.98,199.97,0.79]
[1756728731068,64.91611127,199.98,199.97,0.79]
[1756728731366,25.95611127,199.98,199.97,0.79]
[1756728731547,7.36001721,199.98,199.97,0.79]
[1756728731894,3.60892764,199.99,199.97,0.79]
[1756728732473,3.60892764,199.98,199.97,0.79]
[1756728732974,3.60892764,200.0,199.97,0.79]
[1756728733181,43.95977805,200.01,199.97,0.79]
[1756728733377,3.60892764,200.0,199.97,0.79]
[1756728733577,3.60892764,199.99,199.97,0.79]
[1756728733772,3.60892764,199.99,199.97,0.12]
[1756728733974,3.60892764,199.98,199.97,0.12]
[1756728734176,5.14219217,200.0,199.97,0.12]
[1756728734364,3.60892764,199.98,199.97,0.12]
[1756728735484,3.60892764,199.98,199.97,0.79]
[1756728735679,8.75158926,199.98,199.97,0.12]
[1756728735890,22.67718327,199.98,199.97,0.12]
[1756728737279,26.28611127,199.98,199.97,0.12]
[1756728737682,52.28611127,199.98,199.97,0.12]
[1756728737994,26.28611127,199.98,199.97,0.12]
[1756728738163,26.28611127,199.98,199.97,1e-08]
[1756728738365,0.14216157,199.94,199.91,0.67]
[1756728738563,3.75108921,199.92,199.91,0.67]
[1756728739894,38.96,199.94,199.91,0.67]
[1756728739895,3.60892764,199.94,199.91,0.67]
[1756728740269,0.14216157,199.94,199.92,0.67]
[1756728740489,0.14216157,199.94,199.93,0.67]
[1756728741369,3.75108921,199.94,199.93,0.67]
[1756728742891,3.75108921,199.94,199.93,0.79]
[1756728743296,8.75258966,199.94,199.93,0.79]
[1756728743594,8.75258966,199.94,199.93,0.12]
[1756728743792,22.34818367,199.94,199.93,0.12]
[1756728747281,18.73925603,199.94,199.93,0.12]
[1756728747483,22.34818367,199.94,199.93,0.12]
[1756728747877,22.67818367,199.94,199.93,0.12]
[1756728748266,26.48711167,199.94,199.93,0.12]
[1756728748796,26.15711167,199.94,199.93,0.12]
[1756728749971,26.48711167,199.94,199.93,0.12]
[1756728750470,0.14216157,199.89,199.88,0.68]
[1756728751282,2.005364,199.92,199.88,0.68]
[1756728751481,13.59559401,199.93,199.88,4.28892764]
[1756728751683,26.0,199.94,199.9,3.60892764]
[1756728751886,5.00152375,199.94,199.91,0.68]
[1756728753209,0.14216157,199.94,199.91,0.68]
[1756728753399,5.003252,199.97,199.92,3.60892764]
[1756728753400,52.55559401,199.97,199.92,3.60892764]
[1756728753597,0.14216157,199.96,199.93,0.68]
[1756728754172,57.55635425,199.97,199.93,0.68]
[1756728754384,61.16528189,199.97,199.93,0.68]
[1756728754702,0.14216157,199.96,199.93,0.68]
[1756728757084,5.14320698,199.96,199.93,0.68]
[1756728757892,0.14216157,199.96,199.93,0.68]
[1756728758107,5.1432005,199.96,199.93,0.68]
[1756728759901,5.03073792,199.98,199.93,0.68]
[1756728760111,5.03073792,199.98,199.94,3.71043192]
[1756728760112,47.59966556,199.98,199.94,3.71043192]
[1756728760293,0.14216157,199.97,199.95,4.39043192]
[1756728760495,0.14216157,199.97,199.96,3.71043192]
[1756728760810,13.73775558,199.97,199.96,3.71245277]
[1756728760982,13.73775558,199.97,199.96,4.39245277]
[1756728760983,22.34743333,199.97,199.96,4.39245277]
[1756728761175,0.14216157,199.97,199.96,4.39245277]
[1756728761619,5.14291168,199.97,199.96,3.71245277]
[1756728761822,5.14291168,199.97,199.96,4.39245277]
[1756728764113,0.14216157,199.97,199.96,4.39245277]
[1756728764613,0.14216157,199.97,199.96,4.39898315]
[1756728764819,0.03,199.98,199.96,4.39898315]
[1756728765105,0.03,199.98,199.97,4.39899407]
[1756728766983,212.43559401,200.01,200.0,16.1888379]
[1756728767185,198.84,200.01,200.0,20.58783197]
[1756728767402,133.9,200.01,200.0,20.58783197]
[1756728767599,133.9,200.01,200.0,19.90783197]
[1756728767808,137.50892764,200.01,200.0,19.90783197]
[1756728768310,142.50867765,200.01,200.0,19.90783197]
[1756728768988,142.65083922,200.01,200.0,19.90783197]
[1756728769308,181.59083922,200.01,200.0,19.90783197]
[1756728770991,195.18643323,200.01,200.0,19.90783197]
[1756728771727,181.59083922,200.01,200.0,20.58783197]
[1756728771889,142.65083922,200.01,200.0,20.58783197]
[1756728772408,142.65083922,200.01,200.0,28.58783197]
[1756728772600,142.65083922,200.01,200.0,27.90783197]
[1756728773695,156.24643323,200.01,200.0,27.90783197]
[1756728773903,156.57643323,200.01,200.0,27.90783197]
[1756728774113,156.24643323,200.01,200.0,27.90783197]
[1756728774696,156.57643323,200.01,200.0,27.90783197]
[1756728774927,156.57643323,200.01,200.0,24.1888379]
[1756728775105,156.57643323,200.01,200.0,27.91479991]
[1756728777795,156.24643323,200.01,200.0,27.91479991]
[1756728778001,156.57643323,200.01,200.0,27.91479991]
[1756728778715,156.57643323,200.01,200.0,44.50879991]
[1756728779620,156.60643323,200.01,200.0,44.50879991]
[1756728779990,156.60643323,200.01,200.0,18.83369661]
[1756728780532,39.59559401,199.98,199.97,0.12]